Cogmind - Beta 14 @@@ ROGUE MODE // 2024.11.25 @ 20:49:26 Player: UnderDoug Result: Destroyed by G-50 Soldier with Heavy Laser Performance ------------- Evolutions (2) 1000 Regions Visited (5) 1000 Robots Destroyed (21) 105 Value Destroyed (443) 443 Prototype IDs (3) 60 Alien Tech Used (0) 0 Bonus (38) 38 TOTAL SCORE: 2646 Bonus ------- Follower Combat Kills 70 Friendly Fire -32 Cogmind --------- Core Integrity 0/550 Matter 215/300 Energy 96/100 System Corruption 13% Temperature Cool (9) Movement Core (350) Ox6 Location -8/Materials Parts ------- > --- POWER (2) -------- (None) > --- PROPULSION (2) --- (None) > --- UTILITY (4) ------ Large Storage Unit > --- WEAPON (3) ------- Mini Grenade Launcher > --- INVENTORY (15) --- Reinforced Deuterium Engine Light Fission Core Cesium-ion Thruster Terrain Scanner EM Pulse Gun Assault Rifle Rocket Launcher Rocket Launcher Mini Grenade Launcher Peak State ------------ > --- POWER ------------ (None) > --- PROPULSION ------- Wheel Cesium-ion Thruster > --- UTILITY ---------- Large Storage Unit Experimental Sensor Array Terrain Scanner ECM Suite > --- WEAPON ----------- Particle Gun Light Assault Rifle Mini Grenade Launcher > --- INVENTORY -------- Reinforced Deuterium Engine Light Fission Core EM Pulse Gun Assault Rifle Assault Rifle Light Assault Rifle Rocket Launcher Rocket Launcher Mini Grenade Launcher Mini Grenade Launcher Mining Laser [Rating: 23] Favorites ----------- Power Light Ion Engine Engine Light Ion Engine Power Core Light Nuclear Core Propulsion Wheel Wheel Wheel Flight Unit Flight Unit Utility Large Storage Unit Device ECM Suite Storage Large Storage Unit Protection Medium Armor Plating Weapon Mini Grenade Launcher Energy Gun Particle Gun Ballistic Gun Assault Rifle Launcher Mini Grenade Launcher Special Weapon Mining Laser Build | -11 -10 -10 -10 -9 -8 ------- Run | Yrd Mat Min Exi Min Mat Slots Evolved 4 | . . . . . 4 Power 1 | . . . . . 1 Propulsion . | . . . . . . Utility 2 | . . . . . 2 Weapon 1 | . . . . . 1 Parts Attached 36 | 5 13 1 1 5 11 Power 5 | 1 1 1 1 1 . Engine 4 | 1 1 . 1 1 . Core 1 | . . 1 . . . Reactor . | . . . . . . Propulsion 8 | 2 4 . . . 2 Treads . | . . . . . . Leg . | . . . . . . Wheel 5 | 2 2 . . . 1 Hover . | . . . . . . Flight 3 | . 2 . . . 1 Utility 8 | . 3 . . 2 3 Device 6 | . 2 . . 1 3 Storage 1 | . 1 . . . . Processor . | . . . . . . Hackware . | . . . . . . Protection 1 | . . . . 1 . Artifact . | . . . . . . Weapon 15 | 2 5 . . 2 6 Energy Gun 1 | . . . . 1 . Energy Cannon . | . . . . . . Ballistic Gun 7 | 2 . . . 1 4 Ballistic Cannon . | . . . . . . Launcher 6 | . 5 . . . 1 Special Weapon 1 | . . . . . 1 Impact Weapon . | . . . . . . Slashing Weapon . | . . . . . . Piercing Weapon . | . . . . . . Special Melee Weapon . | . . . . . . Unidentified Prototypes 1 | . . . . 1 . Parts Lost 12 | . . . . 2 10 Power 2 | . . . . 2 . Propulsion 2 | . . . . . 2 Utility 3 | . . . . . 3 Weapon 5 | . . . . . 5 Highest Loss Streak 10 | . . . . 1 10 To Critical Strikes . | . . . . . . Average Slot Usage (%) 96 | . 96 100 100 98 66 Engine 12 | . 14 11 13 12 . Wheel 25 | . 23 28 28 28 11 Flight 1 | . 4 . . . . Device 11 | . 12 14 14 4 22 Storage 13 | . 12 14 14 14 9 Protection 2 | . . . . 9 . Energy Gun 2 | . . . . 6 7 Ballistic Gun 3 | . 10 . . . 8 Launcher 21 | . 16 28 28 21 7 Peak Build Rating 23 | 5 10 12 13 19 23 Average Rating 11 | 3 8 10 11 13 19 On Entrance 9 | . 5 10 12 11 18 Naked Turns . | . . . . . . Heaviest Build 34 | 7 29 29 29 34 32 Greatest Support 20 | 20 20 20 20 20 20 Greatest Overweight (x) 6 | . 3 2 1 1 6 Average Overweight (x) 1 | . 1 1 1 1 1 Largest Inventory Capacity 15 | 5 15 15 15 15 15 Average Capacity 14 | 5 14 15 15 15 15 Most Carried 15 | 5 15 15 15 15 13 Average Carried 13 | 2 12 14 14 14 12 Final Capacity 15 | 5 15 15 15 15 15 Final Carried 15 | 5 14 15 15 14 9 Class Distribution -------------------- 95% | Mutant 4% | Bomber Dominant Class ---------------- Mutant | -10/Materials Mutant | -10/Mines Mutant | -10/Exiles Mutant | -9/Mines Bomber | -8/Materials Resources | -11 -10 -10 -10 -9 -8 ----------- Run | Yrd Mat Min Exi Min Mat Matter Collected 772 | 280 196 92 . 165 39 Remotely . | . . . . . . Salvage Created 388 | 67 88 94 . 95 44 Parts 36 | 4 15 5 . 11 1 Haulers Intercepted . | . . . . . . Recyclers Shooed . | . . . . . . Parts Field Recycled . | . . . . . . Retrieved Matter . | . . . . . . Parts Self-Destructed . | . . . . . . Prevented . | . . . . . . Kills | -11 -10 -10 -10 -9 -8 ------- Run | Yrd Mat Min Exi Min Mat Combat Hostiles Destroyed 17 | 1 6 5 . 4 1 Guns 5 | 1 3 . . 1 . AOE 12 | . 3 5 . 3 1 Classes Destroyed 5 | 2 2 . . 1 . Worker 1 | . . . . 1 . Tunneler 1 | 1 . . . . . Watcher 2 | . 2 . . . . Swarmer 11 | . 6 3 . 2 . Grunt 6 | 1 . 2 . 2 1 Best Kill Streak 3 | 2 3 3 . 2 1 Combat Bots Only 3 | 1 3 3 . 2 1 Max Kills in Single Turn 3 | 1 2 3 . 2 1 Gunslinging . | . . . . . . Exploded 3 | . 2 3 . 2 1 Melee . | . . . . . . Uniques/NPCs Destroyed . | . . . . . . Combat | -11 -10 -10 -10 -9 -8 -------- Run | Yrd Mat Min Exi Min Mat Hostile Shots Fired 118 | 8 15 8 . 17 70 Missed 27 | 3 4 . . 5 15 Damage Taken 1574 | 54 92 66 . 200 1162 Core 694 | 23 16 23 . 73 559 Absorbed by Shields . | . . . . . . Core Remaining (%) 68 | 90 . . . 46 . Volleys Fired 47 | 5 14 2 . 7 19 Largest 3 | 2 2 2 . 2 3 Hottest 150 | 40 60 60 . 65 150 Shots Fired 84 | 10 28 3 . 9 34 Gun 65 | 10 18 . . 5 32 Cannon . | . . . . . . Launcher 19 | . 10 3 . 4 2 Special . | . . . . . . Kinetic 52 | 10 18 . . 4 20 Thermal 13 | . . . . 1 12 Explosive 19 | . 10 3 . 4 2 Electromagnetic . | . . . . . . Robot Hit Streak 15 | 3 2 2 . 3 15 Robot Miss Streak 4 | 4 3 . . 4 4 Penetration Max . | . . . . . . Secondary Targets . | . . . . . . Shots Hit Robots 38 | 4 7 1 . 3 23 Core Hits 34 | 2 12 6 . 6 8 Critical Kills . | . . . . . . Critical Parts Destroyed . | . . . . . . Critical Strikes . | . . . . . . Melee Attacks . | . . . . . . Impact . | . . . . . . Slashing . | . . . . . . Piercing . | . . . . . . Sneak Attacks . | . . . . . . Combat Hostiles . | . . . . . . Follow-up Attacks . | . . . . . . Damage Inflicted 1763 | 86 442 325 . 307 603 Guns 433 | 86 65 . . 22 260 Cannons . | . . . . . . Explosions 1299 | . 364 325 . 267 343 Melee . | . . . . . . Ramming 31 | . 13 . . 18 . Kinetic 311 | 86 65 . . 8 152 Thermal 122 | . . . . 14 108 Explosive 1250 | . 315 325 . 267 343 Electromagnetic 49 | . 49 . . . . Impact . | . . . . . . Slashing . | . . . . . . Piercing . | . . . . . . Highest Corruption 13 | . 1 2 2 5 13 Average Corruption 1 | . 1 1 2 2 11 Corruption Purged . | . . . . . . Corruption Blocked . | . . . . . . Effects 31 | . 4 4 9 13 1 Message Errors 10 | . 2 1 2 4 1 Matter Fused 9 | . 1 2 2 4 . Heat Flow Errors 3 | . . . 2 1 . Energy Discharges 3 | . . 1 . 2 . Parts Fused 2 | . . . 2 . . Data Loss (minor) 3 | . 1 . . 2 . Alerts 1 | . . . 1 . . Overload Shots . | . . . . . . Overflow Damage 44 | . 28 . . 16 . Projectiles . | . . . . . . Explosions 44 | . 28 . . 16 . Melee . | . . . . . . Knockbacks . | . . . . . . Impact . | . . . . . . Kinetic . | . . . . . . Secondary . | . . . . . . Self-Inflicted Damage 146 | . 8 . . 64 74 Shots 6 | . 2 . . 2 2 Rammed 7 | . 5 . . 2 . Targets Rammed 7 | . 5 . . 2 . Kicked . | . . . . . . Crushed . | . . . . . . Highest Temperature 218 | . . . 218 125 58 Average Temperature 38 | . . . 95 31 17 Received Heat Transfer 405 | 30 . . . 42 333 Siege Activations . | . . . . . . Robots Corrupted . | . . . . . . Combat Hostiles . | . . . . . . Parts Fried . | . . . . . . Impact Corruptions . | . . . . . . Robots Melted . | . . . . . . Combat Hostiles . | . . . . . . Parts Melted . | . . . . . . Heat Transferred 296 | . . . . 37 259 Parts Sabotaged . | . . . . . . Parts Stolen . | . . . . . . Parts Stripped . | . . . . . . Power Chain Reactions . | . . . . . . Alert | -11 -10 -10 -10 -9 -8 ------- Run | Yrd Mat Min Exi Min Mat Peak Influence 269 | 25 269 203 . 114 163 Initial 57 | . 16 57 . . 33 Average 109 | 4 142 107 . 100 58 Maximum Alert Level 1 | . 1 1 . . . Low Security (%) 92 | 100 76 99 . 100 100 Level 1 7 | . 23 . . . . Level 2 . | . . . . . . Level 3 . | . . . . . . Level 4 . | . . . . . . Level 5 . | . . . . . . High Security . | . . . . . . Max Security . | . . . . . . Squads Dispatched 4 | . 2 . . . 2 Investigation 1 | . 1 . . . . Extermination . | . . . . . . Reinforcement 2 | . 1 . . . 1 Assault . | . . . . . . Garrison 1 | . . . . . 1 Intercept . | . . . . . . Searches Triggered . | . . . . . . Construction Impeded 1 | . . . . . 1 Haulers Reinforced . | . . . . . . Active Scanning Responses . | . . . . . . Cargo Convoy Interrupts . | . . . . . . Stealth | -11 -10 -10 -10 -9 -8 --------- Run | Yrd Mat Min Exi Min Mat Distress Signals 2 | . 1 . . . 1 Communications Jammed . | . . . . . . Distress Signals . | . . . . . . Times Spotted 34 | 1 9 3 . 6 15 Peak Tracking Total 9 | 1 4 3 . 4 9 Tactical Retreats 1 | . . . . . 1 Traps | -11 -10 -10 -10 -9 -8 ------- Run | Yrd Mat Min Exi Min Mat Traps Triggered . | . . . . . . Indirectly . | . . . . . . Trap Hack Attempts . | . . . . . . Triggered . | . . . . . . Disarmed . | . . . . . . Reprogrammed . | . . . . . . Reused . | . . . . . . Traps Extracted . | . . . . . . Installed . | . . . . . . Triggered . | . . . . . . Machines | -11 -10 -10 -10 -9 -8 ---------- Run | Yrd Mat Min Exi Min Mat Machines Disabled 5 | . 3 . . 2 . Max in Single Turn 1 | . 1 . . 1 . Machines Repaired . | . . . . . . Machines Dismantled . | . . . . . . Machines Sabotaged . | . . . . . . Overloaded Fab Kills . | . . . . . . Hacking | -11 -10 -10 -10 -9 -8 --------- Run | Yrd Mat Min Exi Min Mat Machines Accessed 10 | . 7 1 2 . . Terminals 6 | . 5 1 . . . Fabricators . | . . . . . . Repair Stations 1 | . 1 . . . . Recycling Units 1 | . 1 . . . . Scanalyzers . | . . . . . . Garrison Access . | . . . . . . Total Hacks 62 | . 26 4 32 . . Successful 47 | . 13 2 32 . . Failed 15 | . 13 2 . . . Catastrophic 2 | . 2 . . . . Database Lockouts . | . . . . . . Manual 3 | . . . 3 . . Terminals 26 | . 22 4 . . . Fabricators . | . . . . . . Repair Stations 3 | . 3 . . . . Recycling Units 1 | . 1 . . . . Scanalyzers . | . . . . . . Garrison Access . | . . . . . . Terminal Hacks 45 | . 11 2 32 . . Record 37 | . 4 1 32 . . Prototype ID Bank 1 | . 1 . . . . Alert Level 1 | . 1 . . . . Dispatch Records 1 | . . 1 . . . Maintenance Status 1 | . 1 . . . . Transport Status 1 | . 1 . . . . Reinforcement Status 1 | . 1 . . . . Recall Investigation 1 | . 1 . . . . Zone Layout 1 | . 1 . . . . Fabricator Hacks . | . . . . . . Repair Station Hacks 1 | . 1 . . . . Scan Component 1 | . 1 . . . . Recycling Unit Hacks 1 | . 1 . . . . Recycle Component 1 | . 1 . . . . Scanalyzer . | . . . . . . Garrison Access Hacks . | . . . . . . Unauthorized Hacks . | . . . . . . Terminals . | . . . . . . Fabricators . | . . . . . . Repair Stations . | . . . . . . Recycling Units . | . . . . . . Scanalyzers . | . . . . . . Garrison Access . | . . . . . . Data Cores Recovered . | . . . . . . Used . | . . . . . . Hacking Detections 8 | . 7 1 . . . Full Trace Events 3 | . 2 1 . . . Feedback Events 1 | . . 1 . . . Corruption 1 | . . 1 . . . Feedback Blocked . | . . . . . . Robot Schematics Acquired . | . . . . . . Robots Built . | . . . . . . Authchips . | . . . . . . Time . | . . . . . . Total Robot Build Rating . | . . . . . . Part Schematics Acquired . | . . . . . . Parts Built . | . . . . . . Authchips . | . . . . . . Time . | . . . . . . Total Part Build Rating . | . . . . . . Parts Repaired . | . . . . . . Time . | . . . . . . Parts Recycled 1 | . 1 . . . . Recycled Matter . | . . . . . . Retrieved Matter . | . . . . . . Retrieved Components . | . . . . . . Parts Scanalyzed . | . . . . . . Part Schematics Acquired . | . . . . . . Parts Damaged . | . . . . . . Bothacking | -11 -10 -10 -10 -9 -8 ------------ Run | Yrd Mat Min Exi Min Mat Used RIF Installer . | . . . . . . Robots Hacked . | . . . . . . Non-combat . | . . . . . . Combat . | . . . . . . Robot Hacks Applied . | . . . . . . Relay Couplers Released . | . . . . . . Fabnet Peak Effective % . | . . . . . . Robots Rewired . | . . . . . . Allies Hacked . | . . . . . . Hacks Repelled . | . . . . . . Allies | -11 -10 -10 -10 -9 -8 -------- Run | Yrd Mat Min Exi Min Mat Total Allies 1 | . . 1 . . . Largest Group 1 | . . 1 1 1 1 Highest-Rated Group 16 | . . 16 16 16 16 Highest-Rated Ally 16 | . . 16 16 16 16 Total Orders . | . . . . . . Ally Attacks 11 | . . . . 3 8 Total Damage 113 | . . . . 28 85 Kills 6 | . . . . 2 4 Allies Corrupted . | . . . . . . Allies Melted . | . . . . . . Intel | -11 -10 -10 -10 -9 -8 ------- Run | Yrd Mat Min Exi Min Mat Robot Analysis Total . | . . . . . . Derelict Logs Recovered 3 | . . 2 . 1 . Drone Launches . | . . . . . . Drone Recoveries . | . . . . . . Exploration | -11 -10 -10 -10 -9 -8 ------------- Run | Yrd Mat Min Exi Min Mat Turns Passed 2799 | 80 722 411 635 792 159 Spaces Moved 2552 | 69 599 376 641 798 69 Core 18 | 17 . . . . 1 Treads . | . . . . . . Legs . | . . . . . . Wheels 2456 | 52 521 376 641 798 68 Hover . | . . . . . . Flight 78 | . 78 . . . . Fastest Speed 37 | 50 37 95 95 95 95 Average Speed 98 | 72 104 107 95 95 105 Slowest Speed 350 | 80 277 110 95 95 350 Overloaded Moves . | . . . . . . Propulsion Burnouts . | . . . . . . Robots Hopped 1 | . 1 . . . . Cave-ins Triggered . | . . . . . . Exploration Rate (%) 58 | 6 73 76 91 99 8 Regions Visited 5 Branch Regions 3 Pre-discovered Areas 4 | . . 2 1 1 . Known Exits Taken . | . . . . . . Unknown Exits Taken 5 | 1 1 1 1 1 . Scrap Searched 3 | . . 1 . 2 . Spaces Dug 5 | . 5 . . . . Terrain Destroyed 181 | . 86 36 . 32 27 Melee . | . . . . . . Projectile . | . . . . . . AOE 181 | . 86 36 . 32 27 Terrain Rammed . | . . . . . . Walls Destroyed . | . . . . . . Machines Disabled . | . . . . . . Actions | -11 -10 -10 -10 -9 -8 --------- Run | Yrd Mat Min Exi Min Mat Total 2750 | 88 670 379 667 824 122 Wait 42 | . 2 . 16 7 17 Move 2545 | 68 596 375 640 797 69 Hop 1 | . 1 . . . . Pick Up 42 | 10 24 1 2 2 3 Fast Attach 2 | . . . 1 1 . Attach 26 | 5 8 . . 3 10 Detach 6 | . 3 . . 1 2 Swap 8 | . 5 1 . 1 1 Drop 19 | . 12 . 3 3 1 Fire 47 | 5 14 2 . 7 19 Melee . | . . . . . . Ram 7 | . 5 . . 2 . Kick . | . . . . . . Crush . | . . . . . . Escape Stasis . | . . . . . . Rewire 5 | . . . 5 . . Trap . | . . . . . . Miscellaneous . | . . . . . . Route ------- -11/Scrapyard -10/Materials (discovered 4 exits: [*Mat x2] / *Min x2) -10/Mines (discovered 3 exits: [*Mat x2] / *Exi) -10/Exiles (discovered 2 exits: [*Min x2]) -9/Mines (discovered 2 exits: [*Mat x2]) -8/Materials History --------- Turn | Location | Event 2 | -11/Scrapyard | Met Revision 17 47 | -11/Scrapyard | Discovered new exit (range 8) 81 | -11/Scrapyard | Entered Materials 239 | -10/Materials | Discovered new exit (range 5) 305 | -10/Materials | Build established: Mutant 365 | -10/Materials | Discovered new exit (range 16) 536 | -10/Materials | Discovered new exit (range 11) 564 | -10/Materials | Discovered new exit (range 15) 803 | -10/Materials | Entered Mines 804 | -10/Mines | Learned location of Storage (-7) 823 | -10/Mines | Learned Materials security intel 1021 | -10/Mines | Learned location of Zion (-7) 1146 | -10/Mines | Assisted by bots powering up and referring to "LRC-V3" 1162 | -10/Mines | Discovered new exit (range 16) 1195 | -10/Mines | Discovered new exit (range 6) 1206 | -10/Mines | Deemed a non-threat by the Exiles lab entrance 1207 | -10/Mines | Discovered new exit (range 5) 1214 | -10/Mines | Entered Exiles 1214 | -10/Exiles | Accompanied by 1 ally 1239 | -10/Exiles | Discovered new exit (range 14) 1260 | -10/Exiles | Met 8R-AWN 1277 | -10/Exiles | Met EX-HEX 1333 | -10/Exiles | Met EX-DEC 1375 | -10/Exiles | Visited The Gauntlet 1553 | -10/Exiles | Discovered new exit (range 15) 1631 | -10/Exiles | Met EX-BIN 1849 | -10/Exiles | Entered Mines 1849 | -9/Mines | Accompanied by 1 ally 1914 | -9/Mines | Found a hidden stash of uninstalled traps 2065 | -9/Mines | Discovered new exit (range 14) 2246 | -9/Mines | Discovered new exit (range 8) 2252 | -9/Mines | Core integrity fell below 50% 2440 | -9/Mines | Found a damaged Exp. Sensor Array with a note attached 2443 | -9/Mines | Found Prototype Device 2444 | -9/Mines | Identified Exp. Sensor Array 2641 | -9/Mines | Entered Materials 2641 | -8/Materials | Accompanied by 1 ally 2641 | -8/Materials | Evolved 4 slots: Power x1, Utility x2, Weapon x1 2741 | -8/Materials | Garrison activated, responded to threat 2785 | -8/Materials | System corruption reached 10% 2787 | -8/Materials | Core integrity fell below 50% 2793 | -8/Materials | Core integrity fell below 20% 2800 | -8/Materials | Destroyed by G-50 Soldier with Heavy Laser Last Messages --------------- R-06 Scavenger collects Aluminum Leg. U-05 Engineer lays Concrete. B-36 Bruiser destroyed. U-05 Engineer lays Concrete. U-05 Engineer builds a Wall. U-05 Engineer lays Concrete. [Achievement: Let's See Who's Tougher] G-47 Trooper destroyed. Mining Laser destroyed. Destroyed Mining Laser. U-05 Engineer lays Concrete. ALERT: Construction progress impeded, dispatching reinforcements to local area. U-05 Engineer lays Concrete. Lgt. Assault Rifle destroyed. U-05 Engineer builds a Wall. WGBV0CJRJ3=5/OOARCM|LU U-05 Engineer builds a Wall. The unstable cave ceiling collapses. U-05 Engineer destroyed. Map ----- +----------------------------------------------------+ | | | | | | | | | | | | | | | | | | | | | | | | | | | | | | | ?????????????????????????????????????????????????? | | ##########???????????????????????????????????????? | | """ """ #???????????????????????????????????????? | | """ """ #???????????????????????????????????????? | | """ """ #???????????????????????????????????????? | | #???????????????????????????????????????? | | #???????????????????????????????????????? | | #???????????????????????????????????????? | | #??????????????#####????????????????????? | | #?????????????## ##???????????????????? | | ####+################### @# #???????????????????? | | Y glg% "R #????????????? | | ################## =%[ """ #????????????? | | #????????????????# #g """ ??????????????? | | ####+#######???????????###g### u ??????????????? | | #???????????# ##/####?????????????? | | #???????????# ???????????????? | | """ """ #????????? + % ????????????? | | """ """ #?????? # ????????? | | """ """ #????# # =## ####+???????? | | ############????######?### %#? #???????????? | | ?????????????????????????# %[#?? !#???????????? | | ?????????????????????????# %#???!!!##???????????? | | ?????????????????????????# #????###????????????? | | ?????????????????????????# #???????????????????? | | ?????????????????????????# ???????????????????? | | ?????????????????????????# ???????????????????? | | ?????????????????????????# "T???????????????????? | | ?????????????????????????? ???????????????????? | | ?????????????????????????? ?????????????????????? | | ?????????????????????????? ?????????????????????? | | ?????????????????????????????????????????????????? | | ?????????????????????????????????????????????????? | | ?????????????????????????????????????????????????? | | ?????????????????????????????????????????????????? | +----------------------------------------------------+ Best States ------------- Heat Dissipation 31 Energy Generation 14 Energy Capacity 160 Matter Stores 300 Matter Capacity 300 Sight Range 16 Robot Scan Range 20 Terrain Scan Range 14 Terrain Scan Density 10 ECM Strength 1 Armor Coverage 225 Evasion (%) 62 Item Schematics ----------------- None Robot Schematics ------------------ None Fabricated ------------ Nothing Alien Tech Used ----------------- None Achievements -------------- Dramatic Entrance Let's See Who's Tougher Librarian System Compromised Tourist Troublemaker Challenges ------------ None Game ------ Seed ReactiveMiningLauncher Manual? 0 Play Time 00:54:06 Cumulative 1.8 hours Start 2024.11.25 @ 18:43:05 End 2024.11.25 @ 20:49:26 Sessions 1 Manual Loads 0 Difficulty Rogue Special Mode None Game No. 2 Rogue 2 Adventurer 0 Explorer 0 Win Type - Total 0 Types 0/0/0/0/0/0/0/0/0 Lore% 3 Gallery% 4 Achievement% 6 Wizard Run 0 Options --------- Layout 1 ASCII 0 Keyboard 0 Movement Numpad Keybinds 0 Fullscreen 2 Font 24/Tamsyn Map View 50x35 Zoom Use 0% Tactical HUD 0 Map Filters NONE Filters NONE Steam 0 RUN: 2e8cd968-9de3-4f90-ac3c-a90476470ec9